[Event "*** Titled Tuesday Blitz"]
[Site "Chess.com"]
[Date "2020.11.24"]
[Round "10"]
[White "Grieve72"]
[Black "oskariot"]
[Result "1-0"]
[WhiteElo "2450"]
[BlackElo "2618"]
[TimeControl "180+1"]
[EndTime "12:14:35 PST"]
[Termination "Grieve72 won by resignation"]

1. d4 {[%clk 0:02:54.5]} 1... e5 {[%clk 0:02:56.3]} 2. dxe5 {[%clk 0:02:53.6]}
2... Bc5 {[%clk 0:02:56.8]} 3. Nf3 {[%clk 0:02:49.7]} 3... d6 {[%clk 0:02:57]}
4. Nc3 {[%clk 0:02:39.4]} 4... Ne7 {[%clk 0:02:57.9]} 5. Bf4 {[%clk 0:02:22.4]}
5... Nbc6 {[%clk 0:02:55.6]} 6. exd6 {[%clk 0:02:21.7]} 6... cxd6 {[%clk
0:02:53.3]} 7. e4 {[%clk 0:02:13.8]} 7... O-O {[%clk 0:02:52.2]} 8. Bc4 {[%clk
0:02:10.9]} 8... Ng6 {[%clk 0:02:52.1]} 9. Bg3 {[%clk 0:02:10.4]} 9... Be6
{[%clk 0:02:48.9]} 10. Bd5 {[%clk 0:01:48.2]} 10... Bb4 {[%clk 0:02:30.6]} 11.
O-O {[%clk 0:01:39.7]} 11... Bxc3 {[%clk 0:02:29.5]} 12. bxc3 {[%clk 0:01:40.6]}
12... Nge5 {[%clk 0:02:29.9]} 13. Nxe5 {[%clk 0:01:30.3]} 13... dxe5 {[%clk
0:02:27.8]} 14. Bxe6 {[%clk 0:01:28.2]} 14... fxe6 {[%clk 0:02:27.5]} 15. Qg4
{[%clk 0:01:25.1]} 15... Qe7 {[%clk 0:02:15.6]} 16. Rfd1 {[%clk 0:01:15.4]}
16... h6 {[%clk 0:02:15.8]} 17. Rd3 {[%clk 0:01:08]} 17... Rad8 {[%clk
0:02:06.1]} 18. Rad1 {[%clk 0:01:07.9]} 18... Rxd3 {[%clk 0:01:59]} 19. Rxd3
{[%clk 0:00:54.7]} 19... Re8 {[%clk 0:01:57.6]} 20. h4 {[%clk 0:00:48.6]} 20...
Qf7 {[%clk 0:01:36.9]} 21. h5 {[%clk 0:00:39.6]} 21... Kh7 {[%clk 0:01:30.9]}
22. Rf3 {[%clk 0:00:35.7]} 22... Qd7 {[%clk 0:01:27.8]} 23. Qg6+ {[%clk
0:00:35.8]} 23... Kg8 {[%clk 0:01:27.5]} 24. Bh4 {[%clk 0:00:27.7]} 24... Rf8
{[%clk 0:01:08]} 25. Rxf8+ {[%clk 0:00:19.9]} 25... Kxf8 {[%clk 0:01:08.7]} 26.
g4 {[%clk 0:00:16.9]} 26... Na5 {[%clk 0:00:46.7]} 27. g5 {[%clk 0:00:13.3]}
27... Qd1+ {[%clk 0:00:46.2]} 28. Kh2 {[%clk 0:00:11]} 28... Qg4 {[%clk
0:00:46]} 29. Bg3 {[%clk 0:00:02.7]} 29... Qxg5 {[%clk 0:00:42.1]} 30. Qxg5
{[%clk 0:00:02.7]} 30... hxg5 {[%clk 0:00:42.3]} 31. Bxe5 {[%clk 0:00:03.4]}
31... Nc4 {[%clk 0:00:41.1]} 32. Bd4 {[%clk 0:00:03.5]} 32... b6 {[%clk
0:00:39.9]} 33. f3 {[%clk 0:00:02.8]} 33... Na3 {[%clk 0:00:40.1]} 34. Kg3
{[%clk 0:00:02.2]} 34... Nxc2 {[%clk 0:00:40.6]} 35. Be5 {[%clk 0:00:02.4]}
35... Ne3 {[%clk 0:00:34.3]} 36. Bd4 {[%clk 0:00:02.4]} 36... Nc4 {[%clk
0:00:25.8]} 37. Kg4 {[%clk 0:00:02.1]} 37... Kf7 {[%clk 0:00:17.2]} 38. Kxg5
{[%clk 0:00:02.1]} 38... Nd2 {[%clk 0:00:17]} 39. Kg4 {[%clk 0:00:02]} 39... Nc4
{[%clk 0:00:17.1]} 40. f4 {[%clk 0:00:02.5]} 40... a5 {[%clk 0:00:17.2]} 41. Kf3
{[%clk 0:00:02.8]} 41... b5 {[%clk 0:00:17.4]} 42. f5 {[%clk 0:00:03.3]} 42...
exf5 {[%clk 0:00:17.2]} 43. exf5 {[%clk 0:00:04.2]} 43... Na3 {[%clk 0:00:15.2]}
44. Ke4 {[%clk 0:00:03.8]} 44... Nc2 {[%clk 0:00:13]} 45. Be5 {[%clk 0:00:03.1]}
45... b4 {[%clk 0:00:12]} 46. cxb4 {[%clk 0:00:02.9]} 46... Nxb4 {[%clk
0:00:12]} 47. a4 {[%clk 0:00:03.4]} 47... Nc6 {[%clk 0:00:11.1]} 48. Bc3 {[%clk
0:00:03.8]} 48... Ne7 {[%clk 0:00:10.3]} 49. Bxa5 {[%clk 0:00:03.5]} 49... Ng8
{[%clk 0:00:09.9]} 50. Bc3 {[%clk 0:00:03.7]} 50... Ne7 {[%clk 0:00:10.1]} 51.
a5 {[%clk 0:00:03.7]} 51... Nc6 {[%clk 0:00:11]} 52. a6 {[%clk 0:00:04.1]} 52...
Na7 {[%clk 0:00:11.9]} 53. Bd4 {[%clk 0:00:04.4]} 53... Nb5 {[%clk 0:00:12]} 54.
a7 {[%clk 0:00:05.3]} 54... Nxa7 {[%clk 0:00:12.5]} 55. Bxa7 {[%clk 0:00:05.1]}
1-0

[Event "*** Titled Tuesday Blitz"]
[Site "Chess.com"]
[Date "2020.11.24"]
[Round "10"]
[White "PowerThinking2650"]
[Black "vinniethepooh"]
[Result "1/2-1/2"]
[WhiteElo "2407"]
[BlackElo "2616"]
[TimeControl "180+1"]
[EndTime "12:14:36 PST"]
[Termination "Game drawn by repetition"]

1. e4 {[%clk 0:03:00.9]} 1... c5 {[%clk 0:02:59.4]} 2. Nf3 {[%clk 0:03:00.2]}
2... d6 {[%clk 0:02:59.8]} 3. d4 {[%clk 0:03:00.6]} 3... cxd4 {[%clk 0:03:00.7]}
4. Nxd4 {[%clk 0:03:01.2]} 4... Nf6 {[%clk 0:03:01.4]} 5. Nc3 {[%clk 0:03:01.6]}
5... a6 {[%clk 0:03:01.9]} 6. Bc4 {[%clk 0:03:02]} 6... e6 {[%clk 0:03:01.7]} 7.
O-O {[%clk 0:03:01.1]} 7... b5 {[%clk 0:02:51.3]} 8. Bb3 {[%clk 0:03:00.9]} 8...
Be7 {[%clk 0:02:51.8]} 9. Qf3 {[%clk 0:02:58.8]} 9... Qb6 {[%clk 0:02:51.4]} 10.
Be3 {[%clk 0:02:49.4]} 10... Qb7 {[%clk 0:02:51.8]} 11. Qg3 {[%clk 0:02:49]}
11... Nbd7 {[%clk 0:02:49.5]} 12. f3 {[%clk 0:02:48.3]} 12... b4 {[%clk
0:02:44]} 13. Nce2 {[%clk 0:02:46.6]} 13... Nc5 {[%clk 0:02:37]} 14. Rad1 {[%clk
0:02:27.1]} 14... Bd7 {[%clk 0:02:29.7]} 15. Bg5 {[%clk 0:02:04.4]} 15... a5
{[%clk 0:02:22.3]} 16. Bc4 {[%clk 0:01:43.9]} 16... Rc8 {[%clk 0:02:17.7]} 17.
b3 {[%clk 0:01:39]} 17... h6 {[%clk 0:01:24.7]} 18. Be3 {[%clk 0:01:34.1]} 18...
Kf8 {[%clk 0:00:45.9]} 19. c3 {[%clk 0:01:25.6]} 19... d5 {[%clk 0:00:36.7]} 20.
exd5 {[%clk 0:01:19]} 20... exd5 {[%clk 0:00:36.7]} 21. Bd3 {[%clk 0:01:15.3]}
21... bxc3 {[%clk 0:00:23.2]} 22. Nxc3 {[%clk 0:01:10.9]} 22... Nxd3 {[%clk
0:00:23.3]} 23. Rxd3 {[%clk 0:01:11.8]} 23... Qc7 {[%clk 0:00:18.8]} 24. Bf4
{[%clk 0:00:53.7]} 24... Qb6 {[%clk 0:00:18.5]} 25. Be5 {[%clk 0:00:53.5]} 25...
Be6 {[%clk 0:00:11.6]} 26. Re1 {[%clk 0:00:39.7]} 26... Nh5 {[%clk 0:00:10.1]}
27. Qf2 {[%clk 0:00:35.5]} 27... Bf6 {[%clk 0:00:10]} 28. Bxf6 {[%clk 0:00:32]}
28... Qc7 {[%clk 0:00:03.7]} 29. Be5 {[%clk 0:00:30.3]} 29... Qd7 {[%clk
0:00:04.2]} 30. Nxe6+ {[%clk 0:00:26.4]} 30... fxe6 {[%clk 0:00:04.3]} 31. Ne2
{[%clk 0:00:25.8]} 31... Nf6 {[%clk 0:00:04.1]} 32. Nd4 {[%clk 0:00:25.5]} 32...
Kf7 {[%clk 0:00:04.2]} 33. Bxf6 {[%clk 0:00:22.5]} 33... gxf6 {[%clk 0:00:05.1]}
34. Nxe6 {[%clk 0:00:22.4]} 34... Rhe8 {[%clk 0:00:05.4]} 35. Rde3 {[%clk
0:00:20.9]} 35... d4 {[%clk 0:00:02.3]} 36. Re4 {[%clk 0:00:20.3]} 36... d3
{[%clk 0:00:02.8]} 37. Qg3 {[%clk 0:00:19.9]} 37... Rxe6 {[%clk 0:00:01.3]} 38.
Rxe6 {[%clk 0:00:18]} 38... d2 {[%clk 0:00:01.8]} 39. Re7+ {[%clk 0:00:04.9]}
39... Qxe7 {[%clk 0:00:02.2]} 40. Rxe7+ {[%clk 0:00:04.5]} 40... Kxe7 {[%clk
0:00:02.9]} 41. Qg7+ {[%clk 0:00:02.6]} 41... Ke6 {[%clk 0:00:03.3]} 42. Qg4+
{[%clk 0:00:02.3]} 42... f5 {[%clk 0:00:03.9]} 43. Qg6+ {[%clk 0:00:02.3]} 43...
Ke7 {[%clk 0:00:04]} 44. Qg7+ {[%clk 0:00:02.5]} 44... Ke6 {[%clk 0:00:04.5]}
45. Qg6+ {[%clk 0:00:02.8]} 45... Ke5 {[%clk 0:00:03.4]} 46. Qg7+ {[%clk
0:00:02]} 46... Ke6 {[%clk 0:00:03.8]} 47. Qg6+ {[%clk 0:00:01.4]} 1/2-1/2

[Event "*** Titled Tuesday Blitz"]
[Site "Chess.com"]
[Date "2020.11.24"]
[Round "10"]
[White "mortngabriel"]
[Black "vova-79"]
[Result "1/2-1/2"]
[WhiteElo "2369"]
[BlackElo "2485"]
[TimeControl "180+1"]
[EndTime "12:14:36 PST"]
[Termination "Game drawn by repetition"]

1. d4 {[%clk 0:03:00.9]} 1... d5 {[%clk 0:02:59.2]} 2. c4 {[%clk 0:02:59.1]}
2... e6 {[%clk 0:02:58.8]} 3. g3 {[%clk 0:02:57.5]} 3... dxc4 {[%clk 0:02:56.3]}
4. Bg2 {[%clk 0:02:57.1]} 4... Nf6 {[%clk 0:02:56]} 5. Nf3 {[%clk 0:02:57]} 5...
c5 {[%clk 0:02:55.6]} 6. O-O {[%clk 0:02:56.6]} 6... Nc6 {[%clk 0:02:55.6]} 7.
dxc5 {[%clk 0:02:53]} 7... Qxd1 {[%clk 0:02:53.9]} 8. Rxd1 {[%clk 0:02:53.9]}
8... Bxc5 {[%clk 0:02:54]} 9. Nbd2 {[%clk 0:02:54.1]} 9... c3 {[%clk 0:02:53.4]}
10. bxc3 {[%clk 0:02:55]} 10... Bd7 {[%clk 0:02:50.2]} 11. Nb3 {[%clk
0:02:54.7]} 11... Be7 {[%clk 0:02:50]} 12. c4 {[%clk 0:02:53.7]} 12... O-O
{[%clk 0:02:47.8]} 13. Bb2 {[%clk 0:02:45.1]} 13... Rfd8 {[%clk 0:02:46.8]} 14.
Nfd4 {[%clk 0:02:19.8]} 14... Rac8 {[%clk 0:02:33.9]} 15. Nb5 {[%clk 0:02:18.9]}
15... Be8 {[%clk 0:02:22.9]} 16. c5 {[%clk 0:02:17.1]} 16... Nd5 {[%clk
0:02:12.7]} 17. e4 {[%clk 0:01:44.5]} 17... Ndb4 {[%clk 0:02:09.7]} 18. a3
{[%clk 0:01:41.3]} 18... Na6 {[%clk 0:02:07]} 19. Nd6 {[%clk 0:01:32.8]} 19...
Rb8 {[%clk 0:02:06.3]} 20. Nxe8 {[%clk 0:01:26.6]} 20... Rxe8 {[%clk 0:02:02.5]}
21. Rac1 {[%clk 0:01:23.8]} 21... Red8 {[%clk 0:02:01.2]} 22. Rxd8+ {[%clk
0:01:02.8]} 22... Rxd8 {[%clk 0:01:58.1]} 23. Bf1 {[%clk 0:01:03.7]} 23... Nc7
{[%clk 0:01:49.6]} 24. f4 {[%clk 0:00:48.8]} 24... Bf6 {[%clk 0:01:31]} 25. Bxf6
{[%clk 0:00:39.3]} 25... gxf6 {[%clk 0:01:31.9]} 26. Kf2 {[%clk 0:00:35.3]}
26... Kf8 {[%clk 0:01:18.1]} 27. Ke3 {[%clk 0:00:34.6]} 27... Ke7 {[%clk
0:01:18]} 28. Rb1 {[%clk 0:00:32]} 28... Rb8 {[%clk 0:01:09.5]} 29. Nd2 {[%clk
0:00:27.5]} 29... b6 {[%clk 0:01:06.7]} 30. cxb6 {[%clk 0:00:25.4]} 30... Rxb6
{[%clk 0:01:07.6]} 31. Rc1 {[%clk 0:00:24.3]} 31... Ne8 {[%clk 0:00:57.1]} 32.
Rc3 {[%clk 0:00:21.1]} 32... Na5 {[%clk 0:00:55.8]} 33. e5 {[%clk 0:00:14.1]}
33... fxe5 {[%clk 0:00:40.1]} 34. fxe5 {[%clk 0:00:15]} 34... Nc6 {[%clk
0:00:40.2]} 35. Ke4 {[%clk 0:00:14.1]} 35... Na5 {[%clk 0:00:35.1]} 36. Nc4
{[%clk 0:00:11.4]} 36... Nxc4 {[%clk 0:00:20.2]} 37. Rxc4 {[%clk 0:00:12.3]}
37... Rb1 {[%clk 0:00:19.8]} 38. Bd3 {[%clk 0:00:10.5]} 38... Re1+ {[%clk
0:00:19]} 39. Kd4 {[%clk 0:00:10.5]} 39... Kd7 {[%clk 0:00:16.4]} 40. Ra4 {[%clk
0:00:09.9]} 40... Nc7 {[%clk 0:00:16.2]} 41. Rxa7 {[%clk 0:00:09.5]} 41... Rh1
{[%clk 0:00:15.9]} 42. Bb5+ {[%clk 0:00:07.6]} 42... Kc8 {[%clk 0:00:14.9]} 43.
Bc6 {[%clk 0:00:06.8]} 43... Rxh2 {[%clk 0:00:13]} 44. Kc5 {[%clk 0:00:06.1]}
44... Rc2+ {[%clk 0:00:12.1]} 45. Kd6 {[%clk 0:00:06.5]} 45... Rd2+ {[%clk
0:00:12.1]} 46. Ke7 {[%clk 0:00:07]} 46... Rc2 {[%clk 0:00:10.7]} 47. Kd6 {[%clk
0:00:06.8]} 47... Rd2+ {[%clk 0:00:10.5]} 48. Ke7 {[%clk 0:00:07.1]} 48... Rc2
{[%clk 0:00:10.2]} 49. Kd6 {[%clk 0:00:05.8]} 1/2-1/2

[Event "*** Titled Tuesday Blitz"]
[Site "Chess.com"]
[Date "2020.11.24"]
[Round "10"]
[White "Guachiney"]
[Black "Grandmaster2B"]
[Result "1-0"]
[WhiteElo "2752"]
[BlackElo "2524"]
[TimeControl "180+1"]
[EndTime "12:14:48 PST"]
[Termination "Guachiney won by resignation"]

1. e4 {[%clk 0:03:00.2]} 1... c5 {[%clk 0:02:59.9]} 2. Nf3 {[%clk 0:02:59.9]}
2... d6 {[%clk 0:02:58.6]} 3. d4 {[%clk 0:02:59.9]} 3... cxd4 {[%clk 0:02:59.5]}
4. Nxd4 {[%clk 0:03:00.7]} 4... Nf6 {[%clk 0:03:00]} 5. Nc3 {[%clk 0:03:01.3]}
5... a6 {[%clk 0:03:00.3]} 6. Be3 {[%clk 0:03:01.9]} 6... e5 {[%clk 0:03:00.4]}
7. Nb3 {[%clk 0:03:02.5]} 7... Be6 {[%clk 0:03:01]} 8. h3 {[%clk 0:03:00.6]}
8... h5 {[%clk 0:02:50.5]} 9. f4 {[%clk 0:02:58.6]} 9... exf4 {[%clk 0:02:48.8]}
10. Bxf4 {[%clk 0:02:58.5]} 10... Nc6 {[%clk 0:02:49.4]} 11. Qe2 {[%clk
0:02:57.3]} 11... Ne5 {[%clk 0:02:49.3]} 12. O-O-O {[%clk 0:02:56.5]} 12... Qc7
{[%clk 0:02:37.6]} 13. Qe3 {[%clk 0:02:50.2]} 13... Be7 {[%clk 0:02:31.6]} 14.
Kb1 {[%clk 0:02:48.9]} 14... O-O {[%clk 0:02:26.2]} 15. Be2 {[%clk 0:02:48.3]}
15... b5 {[%clk 0:02:15.6]} 16. Nd5 {[%clk 0:02:47.1]} 16... Nxd5 {[%clk
0:02:09.2]} 17. exd5 {[%clk 0:02:48]} 17... Bf5 {[%clk 0:02:08.5]} 18. Nd4
{[%clk 0:02:48.6]} 18... Bg6 {[%clk 0:02:04.9]} 19. Bxe5 {[%clk 0:02:48.5]}
19... dxe5 {[%clk 0:02:03.9]} 20. Nc6 {[%clk 0:02:48.8]} 20... Bd6 {[%clk
0:02:04.4]} 21. g4 {[%clk 0:02:44.3]} 21... h4 {[%clk 0:01:29.2]} 22. Qf2 {[%clk
0:02:21]} 22... b4 {[%clk 0:01:11.6]} 23. Qxh4 {[%clk 0:02:18.2]} 23... Be4
{[%clk 0:01:06.2]} 24. Bd3 {[%clk 0:02:15.4]} 24... Bxd3 {[%clk 0:01:01.1]} 25.
Rxd3 {[%clk 0:02:16]} 25... a5 {[%clk 0:00:44]} 26. Rf1 {[%clk 0:01:52.1]} 26...
a4 {[%clk 0:00:41.2]} 27. Rf5 {[%clk 0:01:51.6]} 27... Qb6 {[%clk 0:00:16.3]}
28. Rd1 {[%clk 0:01:44.6]} 28... g6 {[%clk 0:00:11.8]} 29. Rf6 {[%clk
0:01:44.7]} 29... Qc5 {[%clk 0:00:10.1]} 30. Qg3 {[%clk 0:01:30.7]} 30... b3
{[%clk 0:00:07.1]} 31. cxb3 {[%clk 0:01:31]} 31... axb3 {[%clk 0:00:08]} 32.
Qxb3 {[%clk 0:01:30.7]} 32... Be7 {[%clk 0:00:02.1]} 33. Rf3 {[%clk 0:01:14.5]}
33... Ra6 {[%clk 0:00:01.3]} 34. Qb7 {[%clk 0:01:02.7]} 34... Rb6 {[%clk
0:00:01.2]} 35. Qxe7 {[%clk 0:00:55.4]} 35... Qb5 {[%clk 0:00:01.2]} 36. Rb3
{[%clk 0:00:43.3]} 36... Qe2 {[%clk 0:00:01.6]} 37. Rc1 {[%clk 0:00:22.8]} 37...
Qe4+ {[%clk 0:00:01.7]} 38. Ka1 {[%clk 0:00:20]} 38... Rxb3 {[%clk 0:00:01.9]}
39. axb3 {[%clk 0:00:13.9]} 39... Qe3 {[%clk 0:00:02]} 40. Rc5 {[%clk
0:00:11.4]} 40... Ra8+ {[%clk 0:00:02.1]} 41. Na7 {[%clk 0:00:10.6]} 41... Qe1+
{[%clk 0:00:01.6]} 42. Ka2 {[%clk 0:00:10.8]} 42... Qe3 {[%clk 0:00:01.8]} 43.
b4 {[%clk 0:00:08.9]} 43... Qd3 {[%clk 0:00:01.7]} 44. Qb7 {[%clk 0:00:08.3]}
44... Rd8 {[%clk 0:00:01.4]} 45. Rc8 {[%clk 0:00:07.2]} 45... Rxc8 {[%clk
0:00:01.4]} 46. Qxc8+ {[%clk 0:00:07.2]} 46... Kg7 {[%clk 0:00:02.3]} 47. Qc5
{[%clk 0:00:07.6]} 47... Qa6+ {[%clk 0:00:02.3]} 48. Kb3 {[%clk 0:00:08.5]}
48... Qd3+ {[%clk 0:00:01.6]} 49. Qc3 {[%clk 0:00:08.1]} 49... Qxd5+ {[%clk
0:00:01.8]} 50. Ka4 {[%clk 0:00:07.8]} 50... Qd7+ {[%clk 0:00:01.8]} 51. Nc6
{[%clk 0:00:08.7]} 51... Qb7 {[%clk 0:00:01.5]} 52. b5 {[%clk 0:00:09.6]} 52...
Qa8+ {[%clk 0:00:01.8]} 53. Kb4 {[%clk 0:00:09.6]} 53... Qf8+ {[%clk 0:00:01.6]}
54. Qc5 {[%clk 0:00:09.6]} 54... Qa8 {[%clk 0:00:01.6]} 55. Qxe5+ {[%clk
0:00:09.9]} 55... Kg8 {[%clk 0:00:01.8]} 56. Qb8+ {[%clk 0:00:08.6]} 56... Qxb8
{[%clk 0:00:01.7]} 57. Nxb8 {[%clk 0:00:09.5]} 57... f5 {[%clk 0:00:02.5]} 58.
gxf5 {[%clk 0:00:09]} 58... gxf5 {[%clk 0:00:03.4]} 59. Kc4 {[%clk 0:00:09.1]}
59... f4 {[%clk 0:00:04.3]} 60. Kd3 {[%clk 0:00:09.4]} 60... f3 {[%clk
0:00:05.2]} 61. Ke3 {[%clk 0:00:10]} 61... f2 {[%clk 0:00:06.1]} 62. Kxf2 {[%clk
0:00:10.6]} 1-0

[Event "*** Titled Tuesday Blitz"]
[Site "Chess.com"]
[Date "2020.11.24"]
[Round "10"]
[White "Ranindu2003"]
[Black "Nikolakis2014"]
[Result "1-0"]
[WhiteElo "2576"]
[BlackElo "2706"]
[TimeControl "180+1"]
[EndTime "12:14:50 PST"]
[Termination "Ranindu2003 won on time"]

1. e4 {[%clk 0:02:58.6]} 1... c6 {[%clk 0:02:59.2]} 2. d4 {[%clk 0:02:58.3]}
2... d5 {[%clk 0:02:59.2]} 3. e5 {[%clk 0:02:58.8]} 3... Bf5 {[%clk 0:02:58.7]}
4. Nd2 {[%clk 0:02:59.2]} 4... e6 {[%clk 0:02:58.2]} 5. Nb3 {[%clk 0:02:59.4]}
5... Nd7 {[%clk 0:02:56.4]} 6. Nf3 {[%clk 0:02:59.6]} 6... h6 {[%clk 0:02:55.4]}
7. Be2 {[%clk 0:02:59.6]} 7... Ne7 {[%clk 0:02:52.7]} 8. O-O {[%clk 0:02:59.3]}
8... Bg4 {[%clk 0:02:47.5]} 9. h3 {[%clk 0:02:33.4]} 9... Bh5 {[%clk 0:02:46.7]}
10. Ne1 {[%clk 0:02:25.4]} 10... Bxe2 {[%clk 0:02:37.7]} 11. Qxe2 {[%clk
0:02:26.3]} 11... c5 {[%clk 0:02:37.5]} 12. Nxc5 {[%clk 0:02:19.6]} 12... Nxc5
{[%clk 0:02:33.8]} 13. dxc5 {[%clk 0:02:20.5]} 13... Nc6 {[%clk 0:02:33.9]} 14.
Nd3 {[%clk 0:02:20.3]} 14... Be7 {[%clk 0:02:24.2]} 15. f4 {[%clk 0:02:12.1]}
15... g6 {[%clk 0:02:22.7]} 16. c3 {[%clk 0:02:09.2]} 16... h5 {[%clk
0:02:20.5]} 17. Be3 {[%clk 0:02:01.2]} 17... d4 {[%clk 0:02:18.6]} 18. cxd4
{[%clk 0:01:38.4]} 18... Nxd4 {[%clk 0:02:18.6]} 19. Bxd4 {[%clk 0:01:39.3]}
19... Qxd4+ {[%clk 0:02:17.7]} 20. Kh1 {[%clk 0:01:39.7]} 20... O-O {[%clk
0:02:13.6]} 21. Rac1 {[%clk 0:01:35.3]} 21... Rfd8 {[%clk 0:02:11.6]} 22. Rfd1
{[%clk 0:01:35.2]} 22... Rac8 {[%clk 0:02:06.3]} 23. b4 {[%clk 0:01:34.4]} 23...
a5 {[%clk 0:01:46.2]} 24. a3 {[%clk 0:01:32.4]} 24... axb4 {[%clk 0:01:46.4]}
25. axb4 {[%clk 0:01:33.3]} 25... Ra8 {[%clk 0:01:46.5]} 26. b5 {[%clk
0:01:21.6]} 26... Rac8 {[%clk 0:01:44.9]} 27. c6 {[%clk 0:01:17.8]} 27... bxc6
{[%clk 0:01:44.4]} 28. bxc6 {[%clk 0:01:18.7]} 28... Qa4 {[%clk 0:01:41]} 29.
Qf3 {[%clk 0:01:09.1]} 29... Rd5 {[%clk 0:01:22.5]} 30. c7 {[%clk 0:01:01.7]}
30... Qd7 {[%clk 0:01:20.2]} 31. Nf2 {[%clk 0:00:47.7]} 31... Rxd1+ {[%clk
0:01:11.2]} 32. Rxd1 {[%clk 0:00:45.8]} 32... Qxc7 {[%clk 0:01:10.1]} 33. Ne4
{[%clk 0:00:46.3]} 33... Qc2 {[%clk 0:01:05.3]} 34. Rd7 {[%clk 0:00:40.1]} 34...
Rc7 {[%clk 0:00:26.6]} 35. Nf6+ {[%clk 0:00:23.5]} 35... Bxf6 {[%clk 0:00:22.9]}
36. Rxc7 {[%clk 0:00:23.4]} 36... Qxc7 {[%clk 0:00:21.9]} 37. exf6 {[%clk
0:00:23.5]} 37... Qc1+ {[%clk 0:00:18.8]} 38. Kh2 {[%clk 0:00:23]} 38... Qb2
{[%clk 0:00:18.9]} 39. Qa8+ {[%clk 0:00:21]} 39... Kh7 {[%clk 0:00:18.9]} 40.
Qd8 {[%clk 0:00:21.5]} 40... Qf2 {[%clk 0:00:17.7]} 41. Qc7 {[%clk 0:00:15.8]}
41... Kh6 {[%clk 0:00:13.5]} 42. Qxf7 {[%clk 0:00:11.4]} 42... Qxf4+ {[%clk
0:00:13]} 43. Kg1 {[%clk 0:00:12.1]} 43... Qe3+ {[%clk 0:00:12.5]} 44. Kf1
{[%clk 0:00:11.8]} 44... Qd3+ {[%clk 0:00:12.5]} 45. Kf2 {[%clk 0:00:11.7]}
45... Qf5+ {[%clk 0:00:10.4]} 46. Kg1 {[%clk 0:00:11.1]} 46... Kg5 {[%clk
0:00:08.9]} 47. h4+ {[%clk 0:00:06.9]} 47... Kxh4 {[%clk 0:00:08.3]} 48. Qe7
{[%clk 0:00:07.6]} 48... Kg3 {[%clk 0:00:07.9]} 49. Qa3+ {[%clk 0:00:06.1]}
49... Kh4 {[%clk 0:00:05.4]} 50. Qh3+ {[%clk 0:00:06.3]} 50... Qxh3 {[%clk
0:00:05.6]} 51. gxh3 {[%clk 0:00:07.2]} 51... Kg3 {[%clk 0:00:04.9]} 52. f7
{[%clk 0:00:07.3]} 1-0

[Event "*** Titled Tuesday Blitz"]
[Site "Chess.com"]
[Date "2020.11.24"]
[Round "10"]
[White "IANOV0007"]
[Black "xamax2000"]
[Result "0-1"]
[WhiteElo "2436"]
[BlackElo "2644"]
[TimeControl "180+1"]
[EndTime "12:14:51 PST"]
[Termination "xamax2000 won on time"]

1. Nf3 {[%clk 0:03:00.9]} 1... Nf6 {[%clk 0:02:59]} 2. g3 {[%clk 0:02:59.6]}
2... g6 {[%clk 0:02:59.9]} 3. b3 {[%clk 0:02:58.4]} 3... Bg7 {[%clk 0:03:00.8]}
4. Bb2 {[%clk 0:02:57]} 4... O-O {[%clk 0:03:01.7]} 5. Bg2 {[%clk 0:02:56.8]}
5... d5 {[%clk 0:03:02.2]} 6. c4 {[%clk 0:02:55.9]} 6... Nc6 {[%clk 0:03:02.7]}
7. cxd5 {[%clk 0:02:54.8]} 7... Qxd5 {[%clk 0:03:03.6]} 8. Nc3 {[%clk
0:02:53.4]} 8... Qh5 {[%clk 0:03:03.2]} 9. h3 {[%clk 0:02:53.3]} 9... Rd8 {[%clk
0:03:03]} 10. g4 {[%clk 0:02:51.9]} 10... Qa5 {[%clk 0:03:02.4]} 11. a3 {[%clk
0:02:47.5]} 11... Qb6 {[%clk 0:02:27]} 12. O-O {[%clk 0:02:36.5]} 12... Be6
{[%clk 0:02:26.9]} 13. b4 {[%clk 0:02:34.9]} 13... a5 {[%clk 0:02:26.5]} 14. b5
{[%clk 0:02:31.2]} 14... Na7 {[%clk 0:02:22.3]} 15. a4 {[%clk 0:02:30.4]} 15...
c6 {[%clk 0:02:22.1]} 16. Ng5 {[%clk 0:02:21.2]} 16... Bd7 {[%clk 0:02:12.3]}
17. Qb3 {[%clk 0:02:16.2]} 17... e6 {[%clk 0:02:09.3]} 18. Nce4 {[%clk
0:02:07.5]} 18... Nd5 {[%clk 0:01:55.3]} 19. Bxg7 {[%clk 0:02:03.7]} 19... Kxg7
{[%clk 0:01:55.3]} 20. Qb2+ {[%clk 0:02:00.2]} 20... Kg8 {[%clk 0:01:15.4]} 21.
Nd6 {[%clk 0:01:38.3]} 21... Be8 {[%clk 0:00:58.2]} 22. Nxe8 {[%clk 0:01:31.7]}
22... Rxe8 {[%clk 0:00:56.3]} 23. e4 {[%clk 0:01:23]} 23... Nf4 {[%clk
0:00:20.1]} 24. Qf6 {[%clk 0:01:21.5]} 24... Qc7 {[%clk 0:00:19.9]} 25. e5
{[%clk 0:01:10.7]} 25... Ne2+ {[%clk 0:00:13.6]} 26. Kh1 {[%clk 0:01:09.6]}
26... Qe7 {[%clk 0:00:14.5]} 27. Ne4 {[%clk 0:00:57.7]} 27... Rad8 {[%clk
0:00:13.4]} 28. Qf3 {[%clk 0:00:55.4]} 28... Nd4 {[%clk 0:00:11.5]} 29. Nf6+
{[%clk 0:00:54.1]} 29... Kg7 {[%clk 0:00:10]} 30. Qe3 {[%clk 0:00:50.8]} 30...
c5 {[%clk 0:00:06.4]} 31. Rac1 {[%clk 0:00:44.2]} 31... b6 {[%clk 0:00:05.8]}
32. h4 {[%clk 0:00:43]} 32... h6 {[%clk 0:00:05.3]} 33. h5 {[%clk 0:00:42.4]}
33... Nc8 {[%clk 0:00:02.6]} 34. g5 {[%clk 0:00:40.7]} 34... hxg5 {[%clk
0:00:01.6]} 35. Qxg5 {[%clk 0:00:39.7]} 35... Rh8 {[%clk 0:00:01.7]} 36. f4
{[%clk 0:00:26.5]} 36... Nf5 {[%clk 0:00:01.7]} 37. Kg1 {[%clk 0:00:24]} 37...
Rxd2 {[%clk 0:00:01.1]} 38. Rcd1 {[%clk 0:00:20.8]} 38... Qd8 {[%clk 0:00:01.6]}
39. Qg4 {[%clk 0:00:16.1]} 39... Qd4+ {[%clk 0:00:01.4]} 40. Kh2 {[%clk
0:00:12.7]} 40... Rxd1 {[%clk 0:00:01.4]} 41. Rxd1 {[%clk 0:00:12]} 41... Ne3
{[%clk 0:00:02.1]} 42. Rxd4 {[%clk 0:00:09.3]} 42... Nxg4+ {[%clk 0:00:02.6]}
43. Nxg4 {[%clk 0:00:09.4]} 43... Rxh5+ {[%clk 0:00:03.5]} 44. Kg3 {[%clk
0:00:09]} 44... cxd4 {[%clk 0:00:04.4]} 45. Nf6 {[%clk 0:00:08.9]} 45... Rh8
{[%clk 0:00:04.6]} 46. Be4 {[%clk 0:00:07.7]} 46... Ne7 {[%clk 0:00:05.1]} 47.
Kf2 {[%clk 0:00:06.3]} 47... Nf5 {[%clk 0:00:06]} 48. Ke2 {[%clk 0:00:05.9]}
48... Rc8 {[%clk 0:00:06.2]} 49. Kd3 {[%clk 0:00:05.3]} 49... Rc3+ {[%clk
0:00:06.8]} 50. Kd2 {[%clk 0:00:05.2]} 50... Ne3 {[%clk 0:00:07.7]} 51. Ne8+
{[%clk 0:00:03.6]} 51... Kf8 {[%clk 0:00:07.5]} 52. Nd6 {[%clk 0:00:03.5]} 52...
Nc4+ {[%clk 0:00:08]} 53. Nxc4 {[%clk 0:00:02.7]} 53... Rxc4 {[%clk 0:00:08.9]}
54. Kd3 {[%clk 0:00:03]} 54... Rxa4 {[%clk 0:00:09.1]} 55. Bc6 {[%clk
0:00:02.9]} 55... Rb4 {[%clk 0:00:10]} 56. Kc2 {[%clk 0:00:01.9]} 56... a4
{[%clk 0:00:10.6]} 0-1